[Event "Titled Tuesday Blitz March 15 Early 2022"]
[White "Flis, Pawel"]
[Black "Ismayil, Malak"]
[WhiteFideId "1112864"]
[BlackFideId "13412604"]
[WhiteElo "1735"]
[BlackElo "1879"]
[Result "0-1"]
[Round "02"]
[TimeControl "180+1"]
[Date "2022.03.15"]
[WhiteClock "0:00:20"]
[BlackClock "0:00:31"]

1. e4 {[%clk 0:02:55]}  e5 {[%clk 0:02:57]} 2. d4 {[%clk 0:02:55]}  exd4 {[%clk 0:02:57]} 3. Nf3 {[%clk 0:02:55]}  Nc6 {[%clk 0:02:56]} 4. Bc4 {[%clk 0:02:56]}  Bc5 {[%clk 0:02:55]} 5. O-O {[%clk 0:02:50]}  d6 {[%clk 0:02:52]} 6. c3 {[%clk 0:02:48]}  Nf6 {[%clk 0:02:51]} 7. cxd4 {[%clk 0:02:45]}  Bb6 {[%clk 0:02:52]} 8. Nc3 {[%clk 0:02:39]}  Bg4 {[%clk 0:02:50]} 9. Be3 {[%clk 0:02:37]}  O-O {[%clk 0:02:49]} 10. h3 {[%clk 0:02:37]}  Bxf3 {[%clk 0:02:47]} 11. gxf3 {[%clk 0:02:32]}  Qd7 {[%clk 0:02:44]} 12. Kh2 {[%clk 0:02:32]}  Rae8 {[%clk 0:02:42]} 13. Rg1 {[%clk 0:02:31]}  Kh8 {[%clk 0:02:34]} 14. Nd5 {[%clk 0:02:22]}  Nxd5 {[%clk 0:02:29]} 15. Bxd5 {[%clk 0:02:23]}  f5 {[%clk 0:02:27]} 16. Rg5 {[%clk 0:02:11]}  fxe4 {[%clk 0:02:17]} 17. fxe4 {[%clk 0:02:05]}  Rf6 {[%clk 0:02:07]} 18. Rc1 {[%clk 0:01:58]}  Ref8 {[%clk 0:01:59]} 19. Qg4 {[%clk 0:01:44]}  Qxg4 {[%clk 0:01:53]} 20. Rxg4 {[%clk 0:01:45]}  Nxd4 {[%clk 0:01:49]} 21. Bxb7 {[%clk 0:01:31]}  Nf3+ {[%clk 0:01:40]} 22. Kg3 {[%clk 0:01:31]}  Bxe3 {[%clk 0:01:37]} 23. fxe3 {[%clk 0:01:32]}  Ne5 {[%clk 0:01:37]} 24. Rf4 {[%clk 0:01:28]}  c5 {[%clk 0:01:26]} 25. Bd5 {[%clk 0:01:20]}  g5 {[%clk 0:01:21]} 26. Rxf6 {[%clk 0:01:10]}  Rxf6 {[%clk 0:01:22]} 27. Re1 {[%clk 0:01:04]}  Kg7 {[%clk 0:01:17]} 28. Kg2 {[%clk 0:01:02]}  Kg6 {[%clk 0:01:12]} 29. Rf1 {[%clk 0:01:01]}  Rxf1 {[%clk 0:01:08]} 30. Kxf1 {[%clk 0:01:02]}  Nd3 {[%clk 0:01:08]} 31. Ke2 {[%clk 0:01:01]}  Nxb2 {[%clk 0:01:07]} 32. Kd2 {[%clk 0:00:59]}  Na4 {[%clk 0:01:06]} 33. Kc2 {[%clk 0:00:58]}  Kf6 {[%clk 0:01:04]} 34. Kb3 {[%clk 0:00:57]}  Nb6 {[%clk 0:01:03]} 35. Bb7 {[%clk 0:00:55]}  Ke5 {[%clk 0:00:57]} 36. Kc3 {[%clk 0:00:55]}  h5 {[%clk 0:00:55]} 37. Kd3 {[%clk 0:00:52]}  g4 {[%clk 0:00:51]} 38. hxg4 {[%clk 0:00:51]}  hxg4 {[%clk 0:00:52]} 39. Ke2 {[%clk 0:00:51]}  Nc4 {[%clk 0:00:48]} 40. Kf2 {[%clk 0:00:51]}  Nd2 {[%clk 0:00:46]} 41. Kg3 {[%clk 0:00:48]}  Nxe4+ {[%clk 0:00:47]} 42. Kxg4 {[%clk 0:00:48]}  Nc3 {[%clk 0:00:47]} 43. a3 {[%clk 0:00:42]}  Nd1 {[%clk 0:00:45]} 44. Kf3 {[%clk 0:00:41]}  d5 {[%clk 0:00:41]} 45. Bc6 {[%clk 0:00:40]}  Nb2 {[%clk 0:00:41]} 46. a4 {[%clk 0:00:38]}  Nc4 {[%clk 0:00:40]} 47. Bb5 {[%clk 0:00:38]}  Na5 {[%clk 0:00:36]} 48. Ke2 {[%clk 0:00:37]}  Nb3 {[%clk 0:00:36]} 49. Kd3 {[%clk 0:00:36]}  Na5 {[%clk 0:00:31]} 50. Be8 {[%clk 0:00:32]}  Nb7 {[%clk 0:00:31]} 51. Bc6 {[%clk 0:00:32]}  Nd6 {[%clk 0:00:31]} 52. Bd7 {[%clk 0:00:28]}  a5 {[%clk 0:00:32]} 53. Bb5 {[%clk 0:00:27]}  c4+ {[%clk 0:00:31]} 54. Ke2 {[%clk 0:00:23]}  Ne4 {[%clk 0:00:31]} 55. Bc6 {[%clk 0:00:22]}  Nc3+ {[%clk 0:00:31]} 56. Kd2 {[%clk 0:00:22]}  Na2 {[%clk 0:00:30]} 57. Kc2 {[%clk 0:00:20]}  Nb4+ {[%clk 0:00:30]} 58. Kc3 {[%clk 0:00:20]}  Nxc6 {[%clk 0:00:31]} 0-1


[Site "https://www.chess.com"]

[Event "Titled Tuesday Blitz March 15 Early 2022"]
[White "Hamitevici, Vladimir"]
[Black "Bluebaum, Matthias"]
[WhiteFideId "13902393"]
[BlackFideId "24651516"]
[WhiteElo "2359"]
[BlackElo "2550"]
[Result "0-1"]
[Round "02"]
[TimeControl "180+1"]
[Date "2022.03.15"]
[WhiteClock "0:00:02"]
[BlackClock "0:01:43"]

1. a3 {[%clk 0:02:57]}  d5 {[%clk 0:03:00]} 2. Nf3 {[%clk 0:02:56]}  Bg4 {[%clk 0:02:59]} 3. e3 {[%clk 0:02:56]}  e6 {[%clk 0:02:58]} 4. d4 {[%clk 0:02:49]}  Nf6 {[%clk 0:02:58]} 5. c4 {[%clk 0:02:46]}  c6 {[%clk 0:02:58]} 6. Nc3 {[%clk 0:02:45]}  Nbd7 {[%clk 0:02:58]} 7. Be2 {[%clk 0:02:39]}  Bd6 {[%clk 0:02:56]} 8. h3 {[%clk 0:02:39]}  Bh5 {[%clk 0:02:55]} 9. b3 {[%clk 0:02:32]}  O-O {[%clk 0:02:55]} 10. Bb2 {[%clk 0:02:32]}  a5 {[%clk 0:02:56]} 11. O-O {[%clk 0:02:31]}  Qe7 {[%clk 0:02:56]} 12. Qc2 {[%clk 0:02:17]}  Rfc8 {[%clk 0:02:51]} 13. Rfe1 {[%clk 0:01:57]}  e5 {[%clk 0:02:36]} 14. dxe5 {[%clk 0:01:42]}  Nxe5 {[%clk 0:02:36]} 15. Nxe5 {[%clk 0:01:35]}  Qxe5 {[%clk 0:02:37]} 16. g3 {[%clk 0:01:18]}  Bg6 {[%clk 0:02:24]} 17. Bd3 {[%clk 0:01:13]}  Qe6 {[%clk 0:02:17]} 18. Kg2 {[%clk 0:00:44]}  dxc4 {[%clk 0:02:17]} 19. bxc4 {[%clk 0:00:45]}  Qxc4 {[%clk 0:02:13]} 20. Bxc4 {[%clk 0:00:34]}  Bxc2 {[%clk 0:02:14]} 21. Rac1 {[%clk 0:00:33]}  Bg6 {[%clk 0:02:13]} 22. e4 {[%clk 0:00:22]}  Be5 {[%clk 0:02:13]} 23. Bd3 {[%clk 0:00:18]}  Rd8 {[%clk 0:02:12]} 24. Rcd1 {[%clk 0:00:13]}  Bxc3 {[%clk 0:02:00]} 25. Bxc3 {[%clk 0:00:13]}  Rxd3 {[%clk 0:02:01]} 26. Rxd3 {[%clk 0:00:12]}  Bxe4+ {[%clk 0:02:02]} 27. Rxe4 {[%clk 0:00:06]}  Nxe4 {[%clk 0:02:02]} 28. Be1 {[%clk 0:00:04]}  Nc5 {[%clk 0:02:00]} 29. Re3 {[%clk 0:00:02]}  Kf8 {[%clk 0:01:56]} 30. Bc3 {[%clk 0:00:02]}  f6 {[%clk 0:01:54]} 31. Bd4 {[%clk 0:00:03]}  Nd7 {[%clk 0:01:55]} 32. Rb3 {[%clk 0:00:03]}  b5 {[%clk 0:01:55]} 33. Rc3 {[%clk 0:00:03]}  Rc8 {[%clk 0:01:54]} 34. Rc1 {[%clk 0:00:02]}  c5 {[%clk 0:01:54]} 35. Bc3 {[%clk 0:00:03]}  Ra8 {[%clk 0:01:49]} 36. Bd2 {[%clk 0:00:03]}  Ke7 {[%clk 0:01:46]} 37. Rd1 {[%clk 0:00:01]}  b4 {[%clk 0:01:45]} 38. Be3 {[%clk 0:00:02]}  Rc8 {[%clk 0:01:43]} 0-1


[Site "https://www.chess.com"]

[Event "Titled Tuesday Blitz March 15 Early 2022"]
[White "Hansen, Soren Bech"]
[Black "Kuzmin, Roman"]
[WhiteFideId "1400681"]
[BlackFideId "44134932"]
[WhiteElo "2229"]
[BlackElo "1978"]
[Result "0-1"]
[Round "02"]
[TimeControl "180+1"]
[Date "2022.03.15"]
[WhiteClock "0:00:13"]
[BlackClock "0:00:09"]

1. e4 {[%clk 0:03:00]}  c5 {[%clk 0:02:59]} 2. Nf3 {[%clk 0:03:00]}  d6 {[%clk 0:02:59]} 3. Bb5+ {[%clk 0:02:59]}  Bd7 {[%clk 0:02:56]} 4. Bxd7+ {[%clk 0:02:59]}  Qxd7 {[%clk 0:02:57]} 5. O-O {[%clk 0:02:58]}  Nf6 {[%clk 0:02:56]} 6. Qe2 {[%clk 0:02:58]}  Nc6 {[%clk 0:02:50]} 7. c3 {[%clk 0:02:57]}  e6 {[%clk 0:02:50]} 8. d4 {[%clk 0:02:57]}  cxd4 {[%clk 0:02:51]} 9. cxd4 {[%clk 0:02:58]}  d5 {[%clk 0:02:51]} 10. e5 {[%clk 0:02:58]}  Ne4 {[%clk 0:02:52]} 11. Nbd2 {[%clk 0:02:59]}  Nxd2 {[%clk 0:02:49]} 12. Bxd2 {[%clk 0:03:00]}  Be7 {[%clk 0:02:49]} 13. Rfc1 {[%clk 0:02:59]}  O-O {[%clk 0:02:49]} 14. Rc3 {[%clk 0:03:00]}  Rfc8 {[%clk 0:02:33]} 15. Rac1 {[%clk 0:02:59]}  a6 {[%clk 0:02:32]} 16. h4 {[%clk 0:02:56]}  h6 {[%clk 0:02:31]} 17. h5 {[%clk 0:02:55]}  Bd8 {[%clk 0:02:28]} 18. g4 {[%clk 0:02:48]}  Ba5 {[%clk 0:02:09]} 19. Rxc6 {[%clk 0:02:45]}  Rxc6 {[%clk 0:02:00]} 20. Rxc6 {[%clk 0:02:44]}  Qxc6 {[%clk 0:01:50]} 21. Bxa5 {[%clk 0:02:43]}  Qc1+ {[%clk 0:01:46]} 22. Kg2 {[%clk 0:02:39]}  Rc8 {[%clk 0:01:46]} 23. Bc3 {[%clk 0:02:36]}  b5 {[%clk 0:01:43]} 24. a3 {[%clk 0:02:36]}  Qf4 {[%clk 0:01:40]} 25. Ne1 {[%clk 0:02:27]}  a5 {[%clk 0:01:33]} 26. Nd3 {[%clk 0:02:26]}  Qg5 {[%clk 0:01:09]} 27. Bxa5 {[%clk 0:02:19]}  Re8 {[%clk 0:00:41]} 28. Bd2 {[%clk 0:02:14]}  Qh4 {[%clk 0:00:37]} 29. Qf3 {[%clk 0:02:04]}  Qe7 {[%clk 0:00:31]} 30. Bb4 {[%clk 0:01:56]}  Qg5 {[%clk 0:00:31]} 31. Qf4 {[%clk 0:01:52]}  Qh4 {[%clk 0:00:32]} 32. Qg3 {[%clk 0:01:52]}  Qg5 {[%clk 0:00:31]} 33. f4 {[%clk 0:01:52]}  Qd8 {[%clk 0:00:30]} 34. g5 {[%clk 0:01:49]}  Kh8 {[%clk 0:00:22]} 35. Kh3 {[%clk 0:01:28]}  f6 {[%clk 0:00:18]} 36. exf6 {[%clk 0:01:03]}  gxf6 {[%clk 0:00:19]} 37. g6 {[%clk 0:00:59]}  Kg7 {[%clk 0:00:20]} 38. Bc5 {[%clk 0:00:54]}  Qc8 {[%clk 0:00:17]} 39. Kh2 {[%clk 0:00:34]}  Qb8 {[%clk 0:00:15]} 40. Nf2 {[%clk 0:00:26]}  b4 {[%clk 0:00:13]} 41. axb4 {[%clk 0:00:25]}  Qb5 {[%clk 0:00:14]} 42. Qd3 {[%clk 0:00:22]}  Qb8 {[%clk 0:00:14]} 43. Qa6 {[%clk 0:00:21]}  Qxf4+ {[%clk 0:00:12]} 44. Kg2 {[%clk 0:00:22]}  Qg5+ {[%clk 0:00:13]} 45. Kf3 {[%clk 0:00:19]}  Qxh5+ {[%clk 0:00:13]} 46. Ke3 {[%clk 0:00:17]}  Kxg6 {[%clk 0:00:13]} 47. Qb7 {[%clk 0:00:14]}  Qg5+ {[%clk 0:00:12]} 48. Ke2 {[%clk 0:00:15]}  e5 {[%clk 0:00:11]} 49. Qxd5 {[%clk 0:00:12]}  exd4+ {[%clk 0:00:11]} 50. Kf1 {[%clk 0:00:13]}  Qxd5 {[%clk 0:00:09]} 0-1


[Site "https://www.chess.com"]

[Event "Titled Tuesday Blitz March 15 Early 2022"]
[White "Horobetz, Graham"]
[Black "Tabatabaei, M. Amin"]
[WhiteFideId "2047322"]
[BlackFideId "12521213"]
[WhiteElo "2602"]
[BlackElo "2544"]
[Result "0-1"]
[Round "02"]
[TimeControl "180+1"]
[Date "2022.03.15"]
[WhiteClock "0:00:03"]
[BlackClock "0:00:27"]

1. e4 {[%clk 0:03:00]}  e6 {[%clk 0:02:58]} 2. d4 {[%clk 0:03:00]}  d5 {[%clk 0:02:59]} 3. Nd2 {[%clk 0:03:00]}  Be7 {[%clk 0:02:58]} 4. Ngf3 {[%clk 0:02:59]}  Nf6 {[%clk 0:02:57]} 5. e5 {[%clk 0:02:59]}  Nfd7 {[%clk 0:02:58]} 6. Bd3 {[%clk 0:02:51]}  c5 {[%clk 0:02:58]} 7. c3 {[%clk 0:02:51]}  Nc6 {[%clk 0:02:59]} 8. O-O {[%clk 0:02:43]}  g5 {[%clk 0:02:58]} 9. dxc5 {[%clk 0:02:18]}  g4 {[%clk 0:02:54]} 10. Nd4 {[%clk 0:02:18]}  Ndxe5 {[%clk 0:02:54]} 11. Bb5 {[%clk 0:02:11]}  Bd7 {[%clk 0:02:53]} 12. b4 {[%clk 0:02:04]}  Qc7 {[%clk 0:02:51]} 13. a4 {[%clk 0:01:56]}  h5 {[%clk 0:02:52]} 14. N2b3 {[%clk 0:01:41]}  Ng6 {[%clk 0:02:27]} 15. Re1 {[%clk 0:01:32]}  e5 {[%clk 0:02:22]} 16. c4 {[%clk 0:00:30]}  dxc4 {[%clk 0:01:54]} 17. Nxc6 {[%clk 0:00:23]}  Bxc6 {[%clk 0:01:55]} 18. Bxc6+ {[%clk 0:00:21]}  bxc6 {[%clk 0:01:34]} 19. Na5 {[%clk 0:00:21]}  Bxc5 {[%clk 0:01:30]} 20. Nxc4 {[%clk 0:00:19]}  Bxb4 {[%clk 0:01:29]} 21. Re4 {[%clk 0:00:14]}  O-O {[%clk 0:01:28]} 22. h3 {[%clk 0:00:12]}  Rad8 {[%clk 0:01:27]} 23. Qe2 {[%clk 0:00:12]}  f5 {[%clk 0:01:26]} 24. Rxe5 {[%clk 0:00:09]}  Nxe5 {[%clk 0:01:24]} 25. Nxe5 {[%clk 0:00:09]}  Bc3 {[%clk 0:01:21]} 26. Qc4+ {[%clk 0:00:09]}  Kh7 {[%clk 0:01:08]} 27. Qxc3 {[%clk 0:00:09]}  Rd1+ {[%clk 0:01:05]} 28. Kh2 {[%clk 0:00:09]}  gxh3 {[%clk 0:01:06]} 29. Bb2 {[%clk 0:00:09]}  Rxa1 {[%clk 0:01:04]} 30. Bxa1 {[%clk 0:00:09]}  hxg2 {[%clk 0:01:02]} 31. Qf3 {[%clk 0:00:10]}  Qd6 {[%clk 0:00:41]} 32. Qxh5+ {[%clk 0:00:09]}  Qh6 {[%clk 0:00:40]} 33. Qxh6+ {[%clk 0:00:09]}  Kxh6 {[%clk 0:00:41]} 34. Kxg2 {[%clk 0:00:09]}  c5 {[%clk 0:00:34]} 35. Bc3 {[%clk 0:00:08]}  Rb8 {[%clk 0:00:31]} 36. Bd2+ {[%clk 0:00:04]}  Kh5 {[%clk 0:00:30]} 37. Nd7 {[%clk 0:00:04]}  Rd8 {[%clk 0:00:28]} 38. Nf6+ {[%clk 0:00:02]}  Kg6 {[%clk 0:00:28]} 39. Bc3 {[%clk 0:00:02]}  Rd3 {[%clk 0:00:27]} 40. Bb2 {[%clk 0:00:03]}  c4 {[%clk 0:00:27]} 0-1


[Site "https://www.chess.com"]

[Event "Titled Tuesday Blitz March 15 Early 2022"]
[White "Kett, Tim"]
[Black "Mortazavi, Ali"]
[WhiteFideId "1801210"]
[BlackFideId "401323"]
[WhiteElo "2098"]
[BlackElo "2339"]
[Result "0-1"]
[Round "02"]
[TimeControl "180+1"]
[Date "2022.03.15"]
[WhiteClock "0:00:01"]
[BlackClock "0:00:05"]

1. e4 {[%clk 0:02:53]}  c6 {[%clk 0:03:00]} 2. d4 {[%clk 0:02:52]}  d5 {[%clk 0:02:59]} 3. e5 {[%clk 0:02:51]}  Bf5 {[%clk 0:02:59]} 4. h4 {[%clk 0:02:51]}  c5 {[%clk 0:02:59]} 5. dxc5 {[%clk 0:02:41]}  Nc6 {[%clk 0:02:59]} 6. a3 {[%clk 0:02:32]}  e6 {[%clk 0:02:52]} 7. b4 {[%clk 0:02:32]}  Nxe5 {[%clk 0:02:47]} 8. Bb2 {[%clk 0:02:30]}  Nc4 {[%clk 0:02:33]} 9. Bc3 {[%clk 0:01:54]}  Nf6 {[%clk 0:02:25]} 10. Nd2 {[%clk 0:01:54]}  b5 {[%clk 0:01:55]} 11. cxb6 {[%clk 0:01:50]}  Nxb6 {[%clk 0:01:48]} 12. Ngf3 {[%clk 0:01:31]}  Bd6 {[%clk 0:01:33]} 13. h5 {[%clk 0:01:30]}  h6 {[%clk 0:01:31]} 14. Bb5+ {[%clk 0:01:27]}  Kf8 {[%clk 0:01:20]} 15. Nd4 {[%clk 0:01:20]}  Bh7 {[%clk 0:01:16]} 16. Qf3 {[%clk 0:01:12]}  Rc8 {[%clk 0:00:54]} 17. O-O {[%clk 0:01:09]}  Qc7 {[%clk 0:00:43]} 18. Bb2 {[%clk 0:01:05]}  Bh2+ {[%clk 0:00:34]} 19. Kh1 {[%clk 0:01:03]}  Bf4 {[%clk 0:00:34]} 20. Rae1 {[%clk 0:00:53]}  e5 {[%clk 0:00:21]} 21. N4b3 {[%clk 0:00:37]}  e4 {[%clk 0:00:19]} 22. Qh3 {[%clk 0:00:32]}  Be5 {[%clk 0:00:17]} 23. Bxe5 {[%clk 0:00:27]}  Qxe5 {[%clk 0:00:17]} 24. Nc5 {[%clk 0:00:24]}  Qxh5 {[%clk 0:00:16]} 25. Qxh5 {[%clk 0:00:22]}  Nxh5 {[%clk 0:00:16]} 26. a4 {[%clk 0:00:22]}  Nf6 {[%clk 0:00:14]} 27. a5 {[%clk 0:00:21]}  Na8 {[%clk 0:00:14]} 28. Ndb3 {[%clk 0:00:17]}  Nc7 {[%clk 0:00:14]} 29. Bc6 {[%clk 0:00:14]}  Bf5 {[%clk 0:00:12]} 30. b5 {[%clk 0:00:13]}  Ne6 {[%clk 0:00:11]} 31. Nxe6+ {[%clk 0:00:12]}  Bxe6 {[%clk 0:00:11]} 32. Nc5 {[%clk 0:00:11]}  Ke7 {[%clk 0:00:11]} 33. f3 {[%clk 0:00:08]}  Kd6 {[%clk 0:00:10]} 34. Nxe6 {[%clk 0:00:06]}  fxe6 {[%clk 0:00:11]} 35. fxe4 {[%clk 0:00:05]}  Nxe4 {[%clk 0:00:12]} 36. Rf7 {[%clk 0:00:05]}  Rc7 {[%clk 0:00:08]} 37. Rxc7 {[%clk 0:00:04]}  Kxc7 {[%clk 0:00:09]} 38. Rf1 {[%clk 0:00:04]}  Kd6 {[%clk 0:00:08]} 39. Rf7 {[%clk 0:00:03]}  a6 {[%clk 0:00:08]} 40. Rd7+ {[%clk 0:00:02]}  Ke5 {[%clk 0:00:08]} 41. Rxg7 {[%clk 0:00:02]}  axb5 {[%clk 0:00:08]} 42. a6 {[%clk 0:00:02]}  Rf8 {[%clk 0:00:04]} 43. a7 {[%clk 0:00:02]}  Rf1+ {[%clk 0:00:04]} 44. Kh2 {[%clk 0:00:02]}  Nf2 {[%clk 0:00:04]} 45. a8=Q {[%clk 0:00:01]}  Rh1+ {[%clk 0:00:05]} 46. Kg3 {[%clk 0:00:01]}  Ne4+ {[%clk 0:00:05]} 47. Kg4 {[%clk 0:00:01]}  Nf2+ {[%clk 0:00:05]} 0-1


[Site "https://www.chess.com"]

[Event "Titled Tuesday Blitz March 15 Early 2022"]
[White "Kevlishvili, Robby"]
[Black "Goryachkina, Aleksandra"]
[WhiteFideId "1040634"]
[BlackFideId "4147103"]
[WhiteElo "2584"]
[BlackElo "2426"]
[Result "1-0"]
[Round "02"]
[TimeControl "180+1"]
[Date "2022.03.15"]
[WhiteClock "0:00:36"]
[BlackClock "0:00:03"]

1. e4 {[%clk 0:02:59]}  e6 {[%clk 0:02:59]} 2. d4 {[%clk 0:02:59]}  d5 {[%clk 0:03:00]} 3. Nd2 {[%clk 0:03:00]}  c5 {[%clk 0:02:59]} 4. Ngf3 {[%clk 0:03:00]}  cxd4 {[%clk 0:02:57]} 5. Nxd4 {[%clk 0:03:01]}  Nc6 {[%clk 0:02:57]} 6. Bb5 {[%clk 0:03:01]}  Bd7 {[%clk 0:02:57]} 7. Nxc6 {[%clk 0:03:01]}  bxc6 {[%clk 0:02:57]} 8. Bd3 {[%clk 0:03:01]}  Bd6 {[%clk 0:02:56]} 9. Qe2 {[%clk 0:03:01]}  Qc7 {[%clk 0:02:50]} 10. Nf3 {[%clk 0:02:55]}  dxe4 {[%clk 0:02:48]} 11. Qxe4 {[%clk 0:02:51]}  Nf6 {[%clk 0:02:47]} 12. Qh4 {[%clk 0:02:51]}  c5 {[%clk 0:02:41]} 13. Nd2 {[%clk 0:02:37]}  Nd5 {[%clk 0:02:15]} 14. Nc4 {[%clk 0:02:27]}  Bf4 {[%clk 0:02:12]} 15. O-O {[%clk 0:02:24]}  h6 {[%clk 0:02:04]} 16. Re1 {[%clk 0:02:16]}  O-O {[%clk 0:01:58]} 17. b3 {[%clk 0:02:01]}  Bxc1 {[%clk 0:01:55]} 18. Raxc1 {[%clk 0:02:02]}  Qf4 {[%clk 0:01:33]} 19. Qg3 {[%clk 0:01:58]}  Rad8 {[%clk 0:01:27]} 20. Ne5 {[%clk 0:01:50]}  Qxg3 {[%clk 0:01:17]} 21. hxg3 {[%clk 0:01:50]}  Nb4 {[%clk 0:01:15]} 22. Bc4 {[%clk 0:01:41]}  Nc6 {[%clk 0:00:31]} 23. Rcd1 {[%clk 0:01:30]}  Be8 {[%clk 0:00:26]} 24. Rxd8 {[%clk 0:01:28]}  Nxd8 {[%clk 0:00:26]} 25. f3 {[%clk 0:01:26]}  Bc6 {[%clk 0:00:20]} 26. Rd1 {[%clk 0:01:20]}  Bd5 {[%clk 0:00:15]} 27. Bxd5 {[%clk 0:01:20]}  exd5 {[%clk 0:00:16]} 28. Rxd5 {[%clk 0:01:20]}  Ne6 {[%clk 0:00:16]} 29. Rd7 {[%clk 0:01:18]}  f6 {[%clk 0:00:12]} 30. Nc4 {[%clk 0:01:16]}  Nd4 {[%clk 0:00:11]} 31. Rxa7 {[%clk 0:01:11]}  Nxc2 {[%clk 0:00:11]} 32. Rc7 {[%clk 0:01:11]}  Nb4 {[%clk 0:00:11]} 33. a3 {[%clk 0:01:10]}  Nd3 {[%clk 0:00:11]} 34. Rd7 {[%clk 0:01:02]}  Nc1 {[%clk 0:00:11]} 35. Rb7 {[%clk 0:01:03]}  Rd8 {[%clk 0:00:10]} 36. a4 {[%clk 0:01:01]}  Rd1+ {[%clk 0:00:11]} 37. Kf2 {[%clk 0:01:00]}  Na2 {[%clk 0:00:08]} 38. a5 {[%clk 0:00:57]}  Nb4 {[%clk 0:00:08]} 39. g4 {[%clk 0:00:56]}  Rb1 {[%clk 0:00:06]} 40. Nd6 {[%clk 0:00:53]}  Ra1 {[%clk 0:00:06]} 41. Nf5 {[%clk 0:00:51]}  Rxa5 {[%clk 0:00:04]} 42. Rxg7+ {[%clk 0:00:51]}  Kf8 {[%clk 0:00:05]} 43. Rb7 {[%clk 0:00:50]}  Ra2+ {[%clk 0:00:04]} 44. Kg3 {[%clk 0:00:50]}  Rb2 {[%clk 0:00:05]} 45. Nxh6 {[%clk 0:00:49]}  Rxb3 {[%clk 0:00:05]} 46. Nf5 {[%clk 0:00:49]}  c4 {[%clk 0:00:04]} 47. Nd4 {[%clk 0:00:49]}  Rb2 {[%clk 0:00:04]} 48. Ne6+ {[%clk 0:00:43]}  Ke8 {[%clk 0:00:04]} 49. Nc7+ {[%clk 0:00:38]}  Kd8 {[%clk 0:00:03]} 50. Nd5 {[%clk 0:00:38]}  Nd3 {[%clk 0:00:02]} 51. Rxb2 {[%clk 0:00:36]}  Nxb2 {[%clk 0:00:03]} 52. Kf4 {[%clk 0:00:37]}  Nd3+ {[%clk 0:00:02]} 53. Kf5 {[%clk 0:00:36]}  Ne1 {[%clk 0:00:01]} 54. Kxf6 {[%clk 0:00:36]}  Nxg2 {[%clk 0:00:02]} 55. g5 {[%clk 0:00:36]}  Nh4 {[%clk 0:00:02]} 56. g6 {[%clk 0:00:35]}  Nxg6 {[%clk 0:00:01]} 57. Kxg6 {[%clk 0:00:35]}  Kd7 {[%clk 0:00:02]} 58. f4 {[%clk 0:00:35]}  Kd6 {[%clk 0:00:02]} 59. Nc3 {[%clk 0:00:35]}  Kc5 {[%clk 0:00:02]} 60. f5 {[%clk 0:00:35]}  Kd4 {[%clk 0:00:03]} 61. Na4 {[%clk 0:00:36]} 1-0


[Site "https://www.chess.com"]

[Event "Titled Tuesday Blitz March 15 Early 2022"]
[White "Khabinets, Ivan"]
[Black "Christensen, Thomas"]
[WhiteFideId "14115980"]
[BlackFideId "1403532"]
[WhiteElo "2114"]
[BlackElo "2266"]
[Result "1-0"]
[Round "02"]
[TimeControl "180+1"]
[Date "2022.03.15"]
[WhiteClock "0:00:49"]
[BlackClock "0:00:12"]

1. d4 {[%clk 0:02:58]}  Nc6 {[%clk 0:02:59]} 2. c4 {[%clk 0:02:58]}  e5 {[%clk 0:02:59]} 3. Nf3 {[%clk 0:02:55]}  exd4 {[%clk 0:02:58]} 4. Nxd4 {[%clk 0:02:55]}  Bc5 {[%clk 0:02:58]} 5. Nb3 {[%clk 0:02:52]}  Bb4+ {[%clk 0:02:57]} 6. Bd2 {[%clk 0:02:52]}  Bxd2+ {[%clk 0:02:57]} 7. Qxd2 {[%clk 0:02:52]}  d6 {[%clk 0:02:58]} 8. Nc3 {[%clk 0:02:52]}  Nge7 {[%clk 0:02:58]} 9. e3 {[%clk 0:02:50]}  O-O {[%clk 0:02:58]} 10. Be2 {[%clk 0:02:51]}  Ng6 {[%clk 0:02:55]} 11. O-O {[%clk 0:02:51]}  f5 {[%clk 0:02:53]} 12. g3 {[%clk 0:02:48]}  Nce5 {[%clk 0:02:23]} 13. f4 {[%clk 0:02:42]}  Ng4 {[%clk 0:02:22]} 14. Bxg4 {[%clk 0:02:42]}  fxg4 {[%clk 0:02:20]} 15. Rad1 {[%clk 0:02:35]}  h5 {[%clk 0:02:17]} 16. c5 {[%clk 0:02:33]}  h4 {[%clk 0:02:12]} 17. cxd6 {[%clk 0:02:33]}  cxd6 {[%clk 0:02:11]} 18. Qxd6 {[%clk 0:02:34]}  Qe8 {[%clk 0:02:07]} 19. Nd5 {[%clk 0:02:27]}  hxg3 {[%clk 0:02:04]} 20. hxg3 {[%clk 0:02:28]}  Qe4 {[%clk 0:01:54]} 21. Qxg6 {[%clk 0:02:24]}  Qxg6 {[%clk 0:01:53]} 22. Ne7+ {[%clk 0:02:25]}  Kh7 {[%clk 0:01:53]} 23. Nxg6 {[%clk 0:02:25]}  Kxg6 {[%clk 0:01:53]} 24. Rd6+ {[%clk 0:02:23]}  Rf6 {[%clk 0:01:53]} 25. Rd8 {[%clk 0:02:21]}  b6 {[%clk 0:01:51]} 26. Nd4 {[%clk 0:01:47]}  Bb7 {[%clk 0:01:49]} 27. f5+ {[%clk 0:01:47]}  Kh7 {[%clk 0:01:31]} 28. Rd7 {[%clk 0:01:35]}  Be4 {[%clk 0:01:28]} 29. Rf4 {[%clk 0:01:33]}  Bc6 {[%clk 0:00:43]} 30. Rc7 {[%clk 0:01:21]}  Bd5 {[%clk 0:00:34]} 31. Rxg4 {[%clk 0:01:14]}  Rg8 {[%clk 0:00:18]} 32. e4 {[%clk 0:01:06]}  Bxa2 {[%clk 0:00:17]} 33. e5 {[%clk 0:01:07]}  Rh6 {[%clk 0:00:17]} 34. f6 {[%clk 0:01:06]}  Rg6 {[%clk 0:00:15]} 35. Rh4+ {[%clk 0:00:50]}  Rh6 {[%clk 0:00:15]} 36. f7 {[%clk 0:00:50]}  Rf8 {[%clk 0:00:13]} 37. e6 {[%clk 0:00:51]}  Bxe6 {[%clk 0:00:12]} 38. Nxe6 {[%clk 0:00:50]}  Rxh4 {[%clk 0:00:12]} 39. Nxf8+ {[%clk 0:00:49]} 1-0


[Site "https://www.chess.com"]